fUST/lending_fUST_20251008
["ID","MTS","AMOUNT","RATE_DAILY","PERIOD"]
[389890706,1759885841989,-500.0,0.00021917,2]
[389890707,1759885841997,-500.0,0.00021917,2]
[389890708,1759885842006,-500.0,0.00021917,2]
[389890709,1759885842015,-500.0,0.00021917,2]
[389890710,1759885842024,-500.0,0.00021917,2]
[389890711,1759885842034,-544.42,0.00021917,2]
[389890712,1759885842043,-500.0,0.00021917,2]
[389890714,1759885842052,-500.0,0.00021917,2]
[389890716,1759885842061,-500.0,0.00021917,2]
[389890718,1759885842070,-488.73742466,0.00021917,2]
[389890720,1759885842079,-500.0,0.00021917,2]
[389890722,1759885842088,-500.0,0.00021917,2]
[389890724,1759885842097,-500.0,0.00021917,2]
[389890726,1759885842106,-500.0,0.00021917,2]
[389890728,1759885842115,-503.4237038,0.00021917,2]
[389890730,1759885842124,-500.0,0.00021917,2]
[389890732,1759885842133,-360.56,0.00021917,2]
[389890733,1759885842142,-500.0,0.00021917,2]
[389890735,1759885842151,-500.0,0.00021917,2]
[389890737,1759885842160,-500.0,0.00021917,2]
[389890740,1759885842168,-500.0,0.00021917,2]
[389890741,1759885842178,-500.0,0.00021917,2]
[389890743,1759885842187,-500.0,0.00021917,2]
[389890745,1759885842195,-500.0,0.00021917,2]
[389890748,1759885842205,-500.0,0.00021917,2]
[389890750,1759885842214,-500.0,0.00021917,2]
[389890751,1759885842222,-500.0,0.00021917,2]
[389890753,1759885842231,-500.0,0.00021917,2]
[389890756,1759885842240,-500.0,0.00021917,2]
[389890758,1759885842250,-500.0,0.00021917,2]
[389890760,1759885842259,-500.0,0.00021917,2]
[389890762,1759885842268,-500.0,0.00021917,2]
[389890764,1759885842278,-500.0,0.00021917,2]
[389890766,1759885842287,-500.0,0.00021917,2]
[389890768,1759885842296,-500.0,0.00021917,2]
[389890770,1759885842305,-500.0,0.00021917,2]
[389890771,1759885842314,-500.0,0.00021917,2]
[389890774,1759885842323,-500.0,0.00021917,2]
[389890775,1759885842332,-500.0,0.00021917,2]
[389890777,1759885842341,-595.84,0.00021917,2]
[389890779,1759885842350,-500.0,0.00021917,2]
[389890781,1759885842359,-500.0,0.00021917,2]
[389890783,1759885842367,-242.06,0.00021917,2]
[389890785,1759885842376,-500.0,0.00021917,2]
[389890787,1759885842385,-500.0,0.00021917,2]
[389890789,1759885842394,-500.0,0.00021917,2]
[389890791,1759885842403,-500.0,0.00021917,2]
[389890793,1759885842412,-500.0,0.00021917,2]
[389890796,1759885842422,-552.31948706,0.00021917,2]
[389890798,1759885842430,-1790.94,0.00021917,2]
[389890799,1759885842439,-1790.94,0.00021917,2]
[389890802,1759885842450,-1790.94,0.00021917,2]
[389890804,1759885842458,-1790.94,0.00021917,2]
[389890806,1759885842468,-1790.94,0.00021917,2]
[389890807,1759885842483,-1790.94,0.00021917,2]
[389890809,1759885842492,-1790.94,0.00021917,2]
[389890811,1759885842501,-1790.94,0.00021917,2]
[389890813,1759885842510,-1790.94,0.00021917,2]
[389890815,1759885842519,-500.0,0.00021917,2]
[389890817,1759885842529,-1790.94,0.00021917,2]
[389890819,1759885842538,-500.0,0.00021917,2]
[389890821,1759885842547,-1790.94,0.00021917,2]
[389890823,1759885842556,-500.0,0.00021917,2]
[389890825,1759885842564,-1790.94,0.00021917,2]
[389890827,1759885842574,-500.0,0.00021917,2]
[389890829,1759885842583,-1790.94,0.00021917,2]
[389890831,1759885842592,-500.0,0.00021917,2]
[389890833,1759885842601,-1790.94,0.00021917,2]
[389890835,1759885842610,-500.0,0.00021917,2]
[389890837,1759885842618,-1790.94,0.00021917,2]
[389890839,1759885842627,-500.0,0.00021917,2]
[389890841,1759885842637,-1790.94,0.00021917,2]
[389890843,1759885842646,-500.0,0.00021917,2]
[389890845,1759885842655,-1790.94,0.00021917,2]
[389890847,1759885842664,-1790.94,0.00021917,2]
[389890849,1759885842674,-1790.94,0.00021917,2]
[389890851,1759885842683,-1790.94,0.00021917,2]
[389890853,1759885842693,-500.0,0.00021917,2]
[389890855,1759885842704,-1790.94,0.00021917,2]
[389890857,1759885842713,-1790.94,0.00021917,2]
[389890859,1759885842722,-1790.94,0.00021917,2]
[389890861,1759885842731,-1790.95442027,0.00021917,2]
[389890863,1759885842741,-500.0,0.00021917,2]
[389890865,1759885842750,-500.0,0.00021917,2]
[389890867,1759885842759,-500.0,0.00021917,2]
[389890869,1759885842769,-500.0,0.00021917,2]
[389890871,1759885842779,-500.0,0.00021917,2]
[389890873,1759885842787,-500.0,0.00021917,2]
[389890875,1759885842796,-500.0,0.00021917,2]
[389890877,1759885842805,-500.0,0.00021917,2]
[389890880,1759885842815,-500.0,0.00021917,2]
[389890882,1759885842824,-500.0,0.00021917,2]
[389890884,1759885842832,-500.0,0.00021917,2]
[389890886,1759885842841,-500.0,0.00021917,2]
[389890888,1759885842851,-500.0,0.00021917,2]
[389890890,1759885842860,-500.0,0.00021917,2]
[389890892,1759885842869,-500.0,0.00021917,2]
[389890894,1759885842878,-500.0,0.00021917,2]
[389890895,1759885842886,-500.0,0.00021917,2]
[389890897,1759885842896,-500.0,0.00021917,2]
[389890899,1759885842905,-500.0,0.00021917,2]
[389890901,1759885842914,-500.0,0.00021917,2]
[389890903,1759885842924,-500.0,0.00021917,2]
[389890905,1759885842933,-500.0,0.00021917,2]
[389890908,1759885842943,-500.0,0.00021917,2]
[389890910,1759885842953,-500.0,0.00021917,2]
[389890912,1759885842962,-500.0,0.00021917,2]
[389890914,1759885842972,-206.32,0.00021917,2]
[389890916,1759885842981,-500.0,0.00021917,2]
[389890917,1759885842990,-500.0,0.00021917,2]
[389890919,1759885842999,-500.0,0.00021917,2]
[389890921,1759885843010,-500.0,0.00021917,2]
[389890923,1759885843019,-619.57,0.00021917,2]
[389890926,1759885843028,-619.57,0.00021917,2]
[389890928,1759885843041,-619.57,0.00021917,2]
[389890930,1759885843050,-500.0,0.00021917,2]
[389890931,1759885843059,-619.57,0.00021917,2]
[389890933,1759885843068,-619.57,0.00021917,2]
[389890935,1759885843077,-619.57,0.00021917,2]
[389890937,1759885843086,-619.57,0.00021917,2]
[389890939,1759885843095,-619.57,0.00021917,2]
[389890941,1759885843104,-500.0,0.00021917,2]
[389890943,1759885843113,-619.57,0.00021917,2]
[389890945,1759885843122,-619.57,0.00021917,2]
[389890948,1759885843131,-619.57,0.00021917,2]
[389890951,1759885843139,-619.57,0.00021917,2]
[389890953,1759885843149,-619.57,0.00021917,2]
[389890956,1759885843158,-619.57,0.00021917,2]
[389890959,1759885843167,-619.57,0.00021917,2]
[389890962,1759885843175,-619.57,0.00021917,2]
[389890964,1759885843185,-619.57,0.00021917,2]
[389890967,1759885843194,-619.57,0.00021917,2]
[389890970,1759885843203,-619.57,0.00021917,2]
[389890973,1759885843213,-500.0,0.00021917,2]
[389890975,1759885843223,-619.57,0.00021917,2]
[389890977,1759885843232,-619.57,0.00021917,2]
[389890979,1759885843242,-619.57,0.00021917,2]
[389890981,1759885843250,-619.57,0.00021917,2]
[389890983,1759885843259,-619.58434853,0.00021917,2]
[389890986,1759885843268,-500.0,0.00021917,2]
[389890989,1759885843278,-500.0,0.00021917,2]
[389890992,1759885843287,-500.16456399,0.00021917,2]
[389890994,1759885843296,-400.844225,0.00021917,2]
[389890996,1759885843305,-500.0,0.00021917,2]
[389890998,1759885843314,-500.0,0.00021917,2]
[389891000,1759885843326,-500.0,0.00021917,2]
[389891002,1759885843335,-500.0,0.00021917,2]
[389891004,1759885843344,-500.0,0.00021917,2]
[389891006,1759885843353,-500.0,0.00021917,2]
[389891008,1759885843364,-500.0,0.00021917,2]
[389891010,1759885843374,-500.0,0.00021917,2]
[389891012,1759885843383,-500.0,0.00021917,2]
[389891014,1759885843392,-450.28010447,0.00021917,2]
[389891016,1759885843402,-500.0,0.00021917,2]
[389891019,1759885843411,-500.0,0.00021917,2]
[389891021,1759885843420,-500.0,0.00021917,2]
[389891023,1759885843429,-500.0,0.00021917,2]
[389891025,1759885843438,-500.0,0.00021917,2]
[389891027,1759885843447,-500.0,0.00021917,2]
[389891029,1759885843456,-500.0,0.00021917,2]
[389891031,1759885843465,-500.0,0.00021917,2]
[389891033,1759885843476,-500.0,0.00021917,2]
[389891035,1759885843485,-500.0,0.00021917,2]
[389891037,1759885843494,-500.0,0.00021917,2]
[389891039,1759885843503,-500.0,0.00021917,2]
[389891041,1759885843512,-238.80646388,0.00021917,2]
[389891043,1759885843521,-500.0,0.00021917,2]
[389891045,1759885843530,-500.0,0.00021917,2]
[389891047,1759885843538,-471.85582543,0.00021917,2]
[389891049,1759885843548,-552.79448149,0.00021917,2]
[389891051,1759885843557,-500.0,0.00021917,2]
[389891053,1759885843566,-500.0,0.00021917,2]
[389891055,1759885843575,-500.0,0.00021917,2]
[389891057,1759885843583,-500.0,0.00021917,2]
[389891059,1759885843592,-500.0,0.00021917,2]
[389891061,1759885843601,-569.73,0.00021917,2]
[389891063,1759885843610,-569.73,0.00021917,2]
[389891065,1759885843619,-569.73,0.00021917,2]
[389891066,1759885843628,-569.73,0.00021917,2]
[389891068,1759885843637,-569.73,0.00021917,2]
[389891070,1759885843646,-569.73,0.00021917,2]
[389891073,1759885843655,-569.73,0.00021917,2]
[389891074,1759885843664,-569.73,0.00021917,2]
[389891076,1759885843673,-569.73,0.00021917,2]
[389891078,1759885843682,-569.73,0.00021917,2]
[389891080,1759885843691,-569.73,0.00021917,2]
[389891082,1759885843700,-569.73,0.00021917,2]
[389891084,1759885843709,-569.73,0.00021917,2]
[389891086,1759885843718,-569.73,0.00021917,2]
[389891088,1759885843727,-569.73,0.00021917,2]
[389891090,1759885843736,-569.73,0.00021917,2]
[389891092,1759885843745,-569.73,0.00021917,2]
[389891094,1759885843753,-569.73,0.00021917,2]
[389891096,1759885843762,-500.0,0.00021917,2]
[389891098,1759885843773,-500.0,0.00021917,2]
[389891100,1759885843781,-569.73,0.00021917,2]
[389891102,1759885843790,-569.73,0.00021917,2]
[389891104,1759885843799,-569.73,0.00021917,2]
[389891106,1759885843808,-569.73,0.00021917,2]
[389891108,1759885843817,-569.73,0.00021917,2]
[389891111,1759885843828,-569.92258923,0.00021917,2]
[389891113,1759885843837,-442.7971609,0.00021917,2]
[389891115,1759885843846,-666.98,0.00021917,2]
[389891117,1759885843855,-666.98,0.00021917,2]
[389891119,1759885843864,-666.98,0.00021917,2]
[389891120,1759885843873,-666.98,0.00021917,2]
[389891122,1759885843882,-666.98,0.00021917,2]
[389891124,1759885843891,-666.98,0.00021917,2]
[389891126,1759885843900,-666.98,0.00021917,2]
[389891128,1759885843909,-666.98,0.00021917,2]
[389891130,1759885843918,-666.98,0.00021917,2]
[389891132,1759885843927,-666.98,0.00021917,2]
[389891134,1759885843936,-666.98,0.00021917,2]
[389891136,1759885843945,-666.98,0.00021917,2]
[389891153,1759885844095,-666.98,0.00021917,2]
[389891155,1759885844104,-666.98,0.00021917,2]
[389891157,1759885844113,-666.98,0.00021917,2]
[389891159,1759885844122,-666.98,0.00021917,2]
[389891161,1759885844131,-1281.03,0.00021917,2]
[389891163,1759885844140,-666.98,0.00021917,2]
[389891165,1759885844149,-666.98,0.00021917,2]
[389891167,1759885844158,-1281.03,0.00021917,2]
[389891169,1759885844167,-500.0,0.00021917,2]
[389891171,1759885844176,-666.98,0.00021917,2]
[389891173,1759885844185,-1281.03,0.00021917,2]
[389891175,1759885844195,-580.24702468,0.00021917,2]
[389891177,1759885844204,-666.98,0.00021917,2]
[389891179,1759885844213,-1281.03,0.00021917,2]
[389891181,1759885844222,-666.98,0.00021917,2]
[389891183,1759885844232,-1281.03,0.00021917,2]
[389891185,1759885844241,-666.98,0.00021917,2]
[389891187,1759885844250,-1281.03,0.00021917,2]
[389891189,1759885844260,-666.98,0.00021917,2]
[389891191,1759885844269,-1281.03,0.00021917,2]
[389891193,1759885844278,-666.98256306,0.00021917,2]
[389891195,1759885844288,-1281.03,0.00021917,2]
[389891197,1759885844297,-1281.03,0.00021917,2]
[389891199,1759885844306,-1281.03,0.00021917,2]
[389891201,1759885844315,-500.0,0.00021917,2]
[389891203,1759885844325,-1281.03,0.00021917,2]
[389891205,1759885844334,-1281.03,0.00021917,2]
[389891207,1759885844344,-1281.03,0.00021917,2]
[389891209,1759885844353,-1281.03,0.00021917,2]
[389891211,1759885844362,-1281.03,0.00021917,2]
[389891213,1759885844371,-1027.65,0.00021917,2]
[389891216,1759885844382,-1281.03,0.00021917,2]
[389891218,1759885844392,-1027.65,0.00021917,2]
[389891219,1759885844402,-1281.03,0.00021917,2]
[389891222,1759885844412,-1281.03,0.00021917,2]
[389891224,1759885844421,-1027.65,0.00021917,2]
[389891226,1759885844430,-500.0,0.00021917,2]
[389891227,1759885844439,-1281.03,0.00021917,2]
[389891230,1759885844448,-1027.65,0.00021917,2]
[389891232,1759885844459,-1027.65,0.00021917,2]
[389891233,1759885844468,-1281.03,0.00021917,2]
[389891235,1759885844481,-1027.65,0.00021917,2]
[389891237,1759885844491,-1281.03,0.00021917,2]
[389891239,1759885844501,-1027.65,0.00021917,2]
[389891241,1759885844511,-1281.03,0.00021917,2]
[389891243,1759885844521,-1027.65,0.00021917,2]
[389891245,1759885844530,-1281.03,0.00021917,2]
[389891247,1759885844539,-500.0,0.00021917,2]
[389891249,1759885844548,-1027.65,0.00021917,2]
[389891251,1759885844557,-1281.25090416,0.00021917,2]
[389891253,1759885844566,-1027.65,0.00021917,2]
[389891255,1759885844575,-1027.65,0.00021917,2]
[389891257,1759885844586,-1027.65,0.00021917,2]
[389891259,1759885844595,-1027.65,0.00021917,2]
[389891261,1759885844605,-500.0,0.00021917,2]
[389891263,1759885844615,-1027.65,0.00021917,2]
[389891265,1759885844624,-500.0,0.00021917,2]
[389891267,1759885844634,-1027.65,0.00021917,2]
[389891270,1759885844644,-500.0,0.00021917,2]
[389891272,1759885844653,-5502.41,0.00021917,2]
[389891274,1759885844663,-1027.65,0.00021917,2]
[389891276,1759885844672,-500.0,0.00021917,2]
[389891278,1759885844683,-5502.41,0.00021917,2]
[389891280,1759885844692,-5502.41,0.00021917,2]
[389891282,1759885844700,-1027.65,0.00021917,2]
[389891284,1759885844709,-5502.41,0.00021917,2]
[389891285,1759885844718,-1027.65,0.00021917,2]
[389891288,1759885844727,-5502.41,0.00021917,2]
[389891290,1759885844736,-1027.65,0.00021917,2]
[389891292,1759885844745,-500.0,0.00021917,2]
[389891294,1759885844755,-5502.41,0.00021917,2]
[389891296,1759885844764,-5502.41,0.00021917,2]
[389891298,1759885844773,-5502.41,0.00021917,2]
[389891300,1759885844784,-500.0,0.00021917,2]
[389891302,1759885844793,-5502.41,0.00021917,2]
[389891304,1759885844802,-1027.65,0.00021917,2]
[389891305,1759885844811,-500.0,0.00021917,2]
[389891307,1759885844822,-5502.41,0.00021917,2]
[389891309,1759885844831,-1027.65,0.00021917,2]
[389891312,1759885844843,-500.0,0.00021917,2]
[389891314,1759885844853,-5502.41,0.00021917,2]
[389891316,1759885844862,-500.0,0.00021917,2]
[389891318,1759885844871,-1027.65,0.00021917,2]
[389891319,1759885844880,-5502.41,0.00021917,2]
[389891322,1759885844892,-500.0,0.00021917,2]
[389891324,1759885844902,-1027.65,0.00021917,2]
[389891325,1759885844912,-2104.02080927,0.00021917,2]
[389892333,1759886062501,160.0,0.00013699,2]
[389892334,1759886063032,260.0,0.00014247,2]
[389892335,1759886063352,360.0,0.00014795,2]
[389892336,1759886063674,460.0,0.00015342,2]
[389892337,1759886063984,560.0,0.0001589,2]
[389892338,1759886064305,660.0,0.00016438,2]
[389892339,1759886064624,340.0,0.00016986,2]
[389892340,1759886361080,-200.0,0.00029,120]
[389892341,1759886361519,-24.69423063,0.00029,120]
[389892342,1759886361540,-175.30576937,0.00029072,120]
[389892343,1759886361988,-24.69423063,0.00029072,120]
[389892344,1759886362009,-154.0,0.000291,120]
[389892345,1759886362030,-21.30576937,0.00029164,120]
[389892346,1759886362476,-150.69423063,0.00029164,120]
[389892347,1759886362497,-200.0,0.0002933,120]
[389892348,1759886362518,-200.0,0.00029409,120]
[389892349,1759886362538,-48.30576937,0.00029499,120]
[389892370,1759886782015,485.343988,0.00013699,2]
[389892371,1759886782037,67.864422,0.00013699,2]
[389892406,1759886999257,200.0,0.00029072,120]
[389892640,1759887042517,504.6,0.0002876,120]
[389892646,1759887043041,-167.8514756,0.00018711,2]
[389892647,1759887043050,-302.78807257,0.000189,2]
[389892648,1759887043060,-302.78807257,0.00019089,2]
[389892649,1759887043071,-302.78807257,0.00019278,2]
[389892650,1759887043081,-302.78807257,0.00019467,2]
[389892651,1759887043089,-302.78807257,0.00019656,2]
[389892652,1759887043098,-161.0,0.00019753,3]
[389892653,1759887043107,-212.56249812,0.00019753,2]
[389892654,1759887043118,-547.88348871,0.0001978,2]
[389892655,1759887043127,-454.18210886,0.00019845,4]
[389892656,1759887043136,-220.80081126,0.00020034,2]
[389892657,1759887043147,-495.45498648,0.00020034,4]
[389892658,1759887043156,-553.20841,0.00020187,2]
[389892659,1759887043166,-302.9107621,0.00021288,2]
[389892661,1759887043393,-165.9146249,0.00021288,2]
[389892662,1759887043406,-402.02512307,0.00021386,2]
[389892663,1759887043417,-1000.0,0.00021503,5]
[389892664,1759887043426,-300.0,0.00021599,2]
[389892665,1759887043436,-1200.0,0.00021599,2]
[389892666,1759887043445,-162.7393299,0.000216,2]
[389892667,1759887043455,-189.5044535,0.000216,2]
[389892668,1759887043464,-297.6412454,0.000216,2]
[389892669,1759887043474,-162.7393299,0.000216,2]
[389892670,1759887043482,-297.6412454,0.000216,2]
[389892671,1759887043492,-162.7393299,0.000216,2]
[389892672,1759887043501,-297.6412454,0.000216,2]
[389892673,1759887043510,-410.247,0.00021716,2]
[389892674,1759887043519,-12370.66792505,0.00021717,2]
[389892675,1759887043530,-683.252632,0.00021717,2]
[389892688,1759887045996,-1193.916193,0.000214,2]
[389892689,1759887046006,-15551.2322734,0.00021717,2]
[389892690,1759887046015,-162.7393299,0.000218,2]
[389892691,1759887046025,-297.6412454,0.000218,2]
[389892692,1759887046034,-200.0,0.00021816,2]
[389892693,1759887046043,-500.0,0.00021816,2]
[389892694,1759887046052,-460.10481296,0.00021816,2]
[389892695,1759887046061,-353.93905664,0.00021817,2]
[389892696,1759887046072,-3113.57468073,0.00021817,2]
[389892697,1759887046081,-867.67061055,0.00021817,2]
[389892698,1759887046090,-1131.25778125,0.00021817,2]
[389892699,1759887046099,-196.32631258,0.00021817,2]
[389892700,1759887046119,-3131.61879295,0.00021817,2]
[389892701,1759887046130,-438.28170347,0.00021817,2]
[389892707,1759887118670,10002.0,0.00028767,120]
[389892717,1759887297703,654.49264089,0.00028767,120]
[389892722,1759887347012,1592.9458794,0.0002876,120]
[389892724,1759887370885,161.80992,0.00028767,120]
[389892732,1759887452572,1976.0,0.000287,120]
[389892733,1759887525322,2000.0,0.00028767,120]
[389892816,1759888232140,-3450.0,0.00019753,2]
[389892817,1759888232150,-159.74852122,0.00019753,3]
[389892818,1759888232160,-150.0,0.00019753,2]
[389892819,1759888232169,-337.92078467,0.0002,2]
[389892820,1759888232179,-164.09321719,0.00020353,2]
[389892821,1759888232187,-666.0,0.00020728,2]
[389892822,1759888232196,-489.0,0.0002082,2]
[389892823,1759888232205,-300.0,0.0002082,2]
[389892824,1759888232214,-1200.0,0.0002082,2]
[389892825,1759888232223,-2893.89769539,0.00020821,2]
[389892826,1759888232234,-756.69683014,0.00020821,2]
[389892827,1759888232258,-466.53666222,0.00020821,2]
[389892855,1759888238171,-8848.154171,0.00020821,2]
[389892858,1759888238184,-5605.52138841,0.00020821,2]
[389892860,1759888238194,-676.37822305,0.00020821,2]
[389892862,1759888238204,-2705.51289221,0.00020821,2]
[389892864,1759888238213,-6081.31660346,0.00020821,2]
[389892866,1759888238224,-736.68135548,0.00021173,2]
[389892868,1759888238233,-694.48875702,0.00021259,2]
[389892870,1759888238243,-360.0,0.00021267,28]
[389892872,1759888238252,-402.02512307,0.00021454,2]
[389892874,1759888238261,-736.68135549,0.00021474,2]
[389892876,1759888238270,-500.0,0.00021643,2]
[389892878,1759888238280,-500.0,0.00021643,2]
[389892880,1759888238289,-500.0,0.00021643,2]
[389892882,1759888238298,-500.0,0.00021643,2]
[389892884,1759888238308,-500.0,0.00021643,2]
[389892886,1759888238317,-500.0,0.00021643,2]
[389892888,1759888238327,-500.0,0.00021643,2]
[389892890,1759888238336,-500.0,0.00021643,2]
[389892892,1759888238345,-500.0,0.00021643,2]
[389892894,1759888238355,-500.0,0.00021643,2]
[389892896,1759888238364,-500.0,0.00021643,2]
[389892898,1759888238373,-500.0,0.00021643,2]
[389892900,1759888238382,-500.0,0.00021643,2]
[389892902,1759888238392,-500.0,0.00021643,2]
[389892904,1759888238401,-500.0,0.00021643,2]
[389892906,1759888238410,-500.0,0.00021643,2]
[389892908,1759888238419,-500.0,0.00021643,2]
[389892910,1759888238428,-500.0,0.00021643,2]
[389892912,1759888238438,-500.0,0.00021643,2]
[389892914,1759888238448,-500.0,0.00021643,2]
[389892916,1759888238457,-500.0,0.00021643,2]
[389892917,1759888238467,-500.0,0.00021643,2]
[389892920,1759888238477,-500.0,0.00021643,2]
[389892922,1759888238486,-500.0,0.00021643,2]
[389892923,1759888238495,-500.0,0.00021643,2]
[389892926,1759888238506,-500.0,0.00021643,2]
[389892927,1759888238515,-500.0,0.00021643,2]
[389892929,1759888238526,-417.46864722,0.00021643,2]
[389892932,1759888238536,-500.0,0.00021643,2]
[389892934,1759888238546,-162.380719,0.00021644,2]
[389892935,1759888238555,-18603.8837,0.00021644,2]
[389892938,1759888238565,-169.21368674,0.00021644,2]
[389892940,1759888238575,-1548.72,0.00021647,10]
[389892942,1759888238584,-801.90458792,0.00021647,10]
[389892944,1759888238595,-488.69541208,0.00021647,10]
[389892946,1759888238603,-507.3635794,0.00021657,2]
[389892948,1759888238613,-209.18542716,0.00021657,2]
[389892954,1759888238679,-1116.45259264,0.00021657,2]
[389892956,1759888238691,-278.31470361,0.00021657,2]
[389892962,1759888238734,-19647.43187131,0.00021657,2]
[389893349,1759888243091,-1075.5,0.00021647,10]
[389893350,1759888243101,-21289.39878778,0.00021657,2]
[389893351,1759888243115,-3313.1473154,0.00021657,2]
[389893352,1759888243125,-4289.4995187,0.00021657,2]
[389893353,1759888243135,-500.0,0.00021716,10]
[389893354,1759888243145,-1075.66977884,0.00021791,2]
[389893355,1759888243155,-1075.66977884,0.00021798,2]
[389893356,1759888243165,-1075.66977884,0.00021804,2]
[389893357,1759888243175,-1075.66977884,0.00021811,2]
[389893358,1759888243185,-361.11004244,0.00021816,2]
[389893359,1759888243195,-200.68812088,0.00021816,2]
[389893360,1759888243204,-5928.98664191,0.00021817,2]
[389893361,1759888243214,-3679.48773871,0.00021817,2]
[389893362,1759888243224,-9008.39988221,0.00021817,3]
[389893364,1759888243236,-2230.87316106,0.00021817,3]
[389893366,1759888243247,-17484.13474716,0.00021817,3]
[389893367,1759888243258,-402.02512307,0.00021817,3]
[389893369,1759888243268,-166.0,0.00021817,2]
[389893371,1759888243278,-166.0,0.00021817,2]
[389893373,1759888243288,-1075.66977884,0.00021817,2]
[389893375,1759888243298,-1238.2588398,0.00021817,2]
[389893377,1759888243310,-2629.98847866,0.00021817,2]
[389893969,1759888545578,417.15472785,0.0002612,55]
[389893983,1759889046166,299.8619526,0.00023288,30]
[389893987,1759889345126,-185.8444167,0.00019651,2]
[389893988,1759889345147,-150.0,0.00019651,2]
[389894034,1759889432708,-300.0,0.00019779,2]
[389894035,1759889432718,-1200.0,0.00019779,2]
[389894036,1759889432727,-701.35668229,0.0001978,2]
[389894037,1759889432736,-2802.62130241,0.0001978,2]
[389894038,1759889432745,-237.92492817,0.0001978,2]
[389894039,1759889432754,-951.69971267,0.0001978,2]
[389894040,1759889432763,-2141.32435351,0.0001978,2]
[389894041,1759889432772,-3806.79885068,0.0001978,2]
[389894042,1759889432781,-5948.12320418,0.0001978,2]
[389894043,1759889432790,-8556.73211661,0.0001978,2]
[389894044,1759889432799,-155.0,0.00019781,3]
[389894045,1759889432809,-151.56139886,0.0002,2]
[389894046,1759889432818,-205.29086068,0.000201,2]
[389894047,1759889432827,-172.5,0.00020251,2]
[389894048,1759889432837,-195.0,0.00020851,2]
[389894049,1759889432846,-500.0,0.00020976,2]
[389894050,1759889432856,-500.0,0.00020976,2]
[389894051,1759889432865,-500.0,0.00020976,2]
[389894052,1759889432874,-500.0,0.00020976,2]
[389894053,1759889432883,-500.0,0.00020976,2]
[389894054,1759889432892,-500.0,0.00020976,2]
[389894055,1759889432901,-500.0,0.00020976,2]
[389894056,1759889432910,-500.0,0.00020976,2]
[389894057,1759889432919,-500.0,0.00020976,2]
[389894058,1759889432928,-431.55594927,0.00020976,2]
[389894059,1759889432937,-500.0,0.00020976,2]
[389894060,1759889432946,-500.0,0.00020976,2]
[389894061,1759889432955,-198.99053455,0.00020977,2]
[389894062,1759889432964,-18603.8837,0.00020977,2]
[389894063,1759889432973,-157.16,0.0002098,3]
[389894064,1759889432982,-471.49,0.0002098,3]
[389894065,1759889432990,-518.66,0.0002098,10]
[389894066,1759889432999,-809.81,0.0002098,10]
[389894067,1759889433009,-674.84,0.0002098,10]
[389894068,1759889433018,-252.77702971,0.00020989,2]
[389894069,1759889433028,-96558.96675563,0.0002099,2]
[389894070,1759889433037,-616.6190802,0.00021246,2]
[389894071,1759889433046,-461.6126953,0.00021246,2]
[389894072,1759889433055,-297.5145665,0.00021246,2]
[389894073,1759889433064,-162.6680534,0.00021246,2]
[389894074,1759889433072,-587.9154515,0.00021255,2]